bitfinex/quotes_SOLUSD_20250802
["timestamp","ask_amount","ask_price","bid_price","bid_amount"]
[1754149674455,43.94,162.16,162.14,11.39039404]
[1754149674638,43.94,162.16,162.11,0.61686509]
[1754149674639,4.10192923,162.15,162.11,0.61686509]
[1754149674835,4.10218569,162.15,162.14,10.67039404]
[1754149675251,4.10218569,162.15,162.14,11.39039404]
[1754149677533,4.10218569,162.15,162.14,0.72]
[1754149677739,4.10218569,162.15,162.14,11.39039404]
[1754149678446,4.10218569,162.15,162.13,10.67039404]
[1754149678662,48.02218569,162.14,162.13,10.67039404]
[1754149680559,48.02218569,162.14,162.13,11.39039404]
[1754149682471,48.02218569,162.14,162.13,10.67039404]
[1754149682765,48.02218569,162.14,162.13,6.40556919]
[1754149683673,48.02218569,162.14,162.13,7.11556919]
[1754149684577,4.10218569,162.14,162.13,7.11556919]
[1754149684957,43.92,162.15,162.13,7.11556919]
[1754149685273,43.92,162.16,162.14,7.11556919]
[1754149685462,4.10572309,162.15,162.1,16.78468397]
[1754149685670,4.10572309,162.15,162.14,6.40556919]
[1754149686062,4.10572309,162.15,162.14,7.11556919]
[1754149688153,4.10572309,162.15,162.14,0.71]
[1754149688351,4.10572309,162.15,162.14,7.11556919]
[1754149688654,31.12787232,162.19,162.14,7.11556919]
[1754149688655,43.92,162.18,162.14,7.11556919]
[1754149688976,4.10611171,162.17,162.14,7.11556919]
[1754149689276,4.10611171,162.16,162.15,0.71]
[1754149689578,4.10611171,162.17,162.15,0.71]
[1754149689772,4.10611171,162.17,162.12,0.71]
[1754149689773,48.02611171,162.16,162.12,0.71]
[1754149690079,4.1051646,162.15,162.13,0.71]
[1754149690277,4.1051646,162.15,162.14,6.40556919]
[1754149690578,43.92,162.16,162.14,7.11556919]
[1754149690883,43.92,162.16,162.15,7.11556919]
[1754149691267,48.02398985,162.16,162.15,6.40556919]
[1754149692079,48.62398985,162.16,162.11,0.06]
[1754149692281,4.70398985,162.15,162.12,6.40556919]
[1754149692452,48.02398985,162.14,162.12,6.40556919]
[1754149692657,4.10398985,162.13,162.12,6.40556919]
[1754149693386,4.10398985,162.13,162.12,7.11556919]
[1754149694583,43.92,162.14,162.12,7.11556919]
[1754149694783,43.92,162.14,162.13,6.40556919]
[1754149694964,5.12998731,162.19,162.13,7.11556919]
[1754149695160,48.020173,162.18,162.17,6.40556919]
[1754149696059,55.02574219,162.18,162.12,0.71]
[1754149696387,4.700173,162.17,162.15,6.40556919]
[1754149696587,49.04998731,162.18,162.12,0.71]
[1754149696588,48.020173,162.16,162.14,6.40556919]
[1754149696762,4.100173,162.15,162.14,6.40556919]
[1754149697163,4.100173,162.15,162.11,0.06]
[1754149697363,48.020173,162.14,162.11,0.77]
[1754149697577,43.92,162.14,162.13,6.40556919]
[1754149697777,48.01966877,162.14,162.13,6.40556919]
[1754149701287,48.01966877,162.14,162.13,7.11556919]
[1754149702179,48.01966877,162.14,162.13,6.40556919]
[1754149704168,52.5757128,162.14,162.13,6.40556919]
[1754149704586,52.5757128,162.14,162.13,7.11556919]
[1754149705294,48.01966877,162.14,162.13,7.11556919]
[1754149705479,52.57431067,162.14,162.13,7.11556919]
[1754149705800,8.65431067,162.14,162.13,7.17556919]
[1754149708869,8.65431067,162.14,162.13,6.46556919]
[1754149711299,9.25431067,162.14,162.13,0.06]
[1754149711800,9.25431067,162.14,162.13,6.46556919]
[1754149711971,8.65431067,162.14,162.13,6.46556919]
[1754149716308,8.65431067,162.14,162.13,7.17556919]
[1754149717002,8.65431067,162.14,162.13,6.46556919]
[1754149719201,8.65431067,162.14,162.13,7.17556919]
[1754149719406,8.65431067,162.14,162.13,0.06]
[1754149719706,8.65431067,162.14,162.13,6.46556919]
[1754149720492,8.65431067,162.14,162.13,0.06]
[1754149721818,15.65987986,162.14,162.13,0.06]
[1754149722383,9.25431067,162.14,162.13,0.06]
[1754149722687,15.65987986,162.14,162.13,0.06]
[1754149722887,9.25366448,162.14,162.13,0.06]
[1754149726124,8.65366448,162.14,162.13,0.06]
[1754149726478,8.65366448,162.14,162.13,7.17556919]
[1754149726881,52.55366448,162.14,162.13,7.17556919]
[1754149728302,52.55366448,162.14,162.13,6.46556919]
[1754149728708,52.55366448,162.14,162.13,0.06]
[1754149729112,8.65366448,162.14,162.13,7.17556919]
[1754149729619,8.65366448,162.14,162.13,6.46556919]
[1754149731317,8.65366448,162.14,162.13,7.17556919]
[1754149731905,8.65366448,162.14,162.13,0.06]
[1754149733888,15.65923367,162.14,162.13,0.06]
[1754149736912,20.78301189,162.14,162.13,0.06]
[1754149737516,15.65923367,162.14,162.11,0.06]
[1754149737717,5.12063062,162.12,162.11,0.06]
[1754149737892,13.7742951,162.12,162.11,0.06]
[1754149738409,8.65366448,162.12,162.11,0.06]
[1754149739812,8.64619555,162.12,162.11,0.06]
[1754149740630,15.65176474,162.12,162.11,0.06]
[1754149741300,35.31524722,162.12,162.11,0.06]
[1754149741620,35.31524722,162.12,162.0,1.1606]
[1754149741621,26.0,162.08,162.0,1.1606]
[1754149741925,32.40556919,162.04,162.0,1.1606]
[1754149742096,52.52619555,162.03,162.0,1.1606]
[1754149742294,4.54717297,162.02,162.0,1.1606]
[1754149742625,48.42717297,162.01,162.0,1.1606]
[1754149742789,4.3324,162.0,161.98,6.40556919]
[1754149742995,43.9,161.99,161.98,6.40556919]
[1754149743395,43.9,161.99,161.98,7.07556919]
[1754149744019,4.3324,162.0,161.98,7.07556919]
[1754149744317,4.3324,162.0,161.99,6.40556919]
[1754149744519,4.3324,162.0,161.95,26.13]
[1754149744717,51.00556919,161.99,161.95,26.13]
[1754149744927,32.40556919,161.96,161.95,26.13]
[1754149745217,80.37788071,161.96,161.95,24.86]
[1754149745418,88.10684605,161.96,161.95,24.86]
[1754149745619,88.10684605,161.96,161.95,21.63645039]
[1754149745802,92.62629591,161.96,161.95,21.63645039]
[1754149746008,40.99733057,161.96,161.95,21.63645039]
[1754149746203,80.82501905,161.96,161.95,21.63645039]
[1754149746417,36.92501905,161.96,161.95,21.63645039]
[1754149746606,4.51944986,161.96,161.95,28.71201958]
[1754149746832,48.41944986,161.96,161.95,28.71201958]
[1754149747149,48.41944986,161.96,161.95,21.63645039]
[1754149747150,80.82501905,161.96,161.95,21.63645039]
[1754149747300,75.65927721,161.96,161.95,21.63645039]
[1754149748410,58.87459324,161.96,161.95,21.63645039]
[1754149748611,75.65927721,161.96,161.95,21.63645039]
[1754149748806,83.38824255,161.96,161.95,21.63645039]
[1754149750033,83.40824255,161.96,161.95,21.63645039]
[1754149750597,16.29798939,161.96,161.95,21.63645039]
[1754149750804,58.89459324,161.96,161.95,21.63645039]
[1754149751408,48.43944986,161.96,161.95,21.63645039]
[1754149751623,80.84501905,161.96,161.95,21.63645039]
[1754149751826,54.84501905,161.96,161.95,21.63645039]
[1754149752025,58.87514184,161.96,161.95,21.63645039]
[1754149752412,77.45501984,161.96,161.95,21.63645039]
[1754149753324,23.09932786,161.96,161.95,22.30645039]
[1754149753513,4.51944986,161.96,161.95,22.30645039]
[1754149753827,43.96,161.96,161.95,28.71201958]
[1754149754204,43.96,161.96,161.95,22.30645039]
[1754149754406,43.96,161.96,161.95,28.71201958]
[1754149754622,43.96,161.96,161.95,22.30645039]
[1754149755330,48.42943749,161.96,161.95,22.30645039]
[1754149755533,43.96,161.96,161.95,22.30645039]
[1754149755829,80.8353145,161.96,161.95,21.63645039]
[1754149756006,54.8353145,161.96,161.95,21.63645039]
[1754149756207,50.36556919,161.96,161.95,21.63645039]
[1754149756419,54.83416399,161.96,161.95,21.63645039]
[1754149757144,50.36556919,161.96,161.95,21.63645039]
[1754149757626,43.96,161.96,161.95,22.30645039]
[1754149757810,69.96,161.96,161.95,22.30645039]
[1754149758135,76.36556919,161.96,161.95,21.63645039]
[1754149758643,69.96,161.96,161.95,22.28645039]
[1754149759209,69.96,161.96,161.95,21.61645039]
[1754149759410,76.36556919,161.96,161.95,21.61645039]
[1754149759832,69.98,161.96,161.95,22.28645039]
[1754149760042,69.98,161.96,161.95,21.61645039]
[1754149760337,69.98,161.96,161.95,22.28645039]
[1754149760504,43.98,161.96,161.95,22.28645039]
[1754149761125,43.98,161.96,161.95,21.61645039]
[1754149761327,50.38556919,161.96,161.95,21.61645039]
[1754149761716,54.85095763,161.96,161.95,21.61645039]
[1754149762237,58.87013103,161.96,161.95,21.61645039]
[1754149762528,81.82917904,161.96,161.95,21.61645039]
[1754149763931,86.93977415,161.96,161.95,21.61645039]
[1754149764109,16.78468397,161.95,161.94,0.06]
[1754149764314,31.674815,161.95,161.94,0.06]
[1754149765033,35.98364971,161.95,161.94,0.06]
[1754149765608,42.158395,161.95,161.94,0.06]
[1754149765809,49.8874688,161.95,161.94,0.06]
[1754149766425,78.4731028,161.95,161.94,0.06]
[1754149767123,97.0231028,161.95,161.94,0.06]
[1754149767328,26.0,161.92,161.91,28.125]
[1754149767512,80.6744039,161.92,161.91,28.125]
[1754149767914,84.68656674,161.92,161.91,28.125]
[1754149768237,89.14722917,161.92,161.91,28.125]
[1754149768756,85.13516898,161.92,161.91,28.125]
[1754149768926,89.14630807,161.92,161.91,28.795]
[1754149769123,59.13516898,161.92,161.91,28.795]
[1754149769328,59.13516898,161.92,161.91,28.125]
[1754149769526,63.14617729,161.92,161.91,28.125]
[1754149772134,80.03647051,161.92,161.86,5.10770859]
[1754149772441,10.7144039,161.87,161.86,5.10770859]
[1754149772648,48.46076508,161.87,161.86,5.10770859]
[1754149772963,59.17516898,161.87,161.86,5.10770859]
[1754149773138,59.17516908,161.87,161.86,5.10770859]
[1754149773459,69.88957298,161.87,161.86,5.81770859]
[1754149774464,73.11471882,161.87,161.86,5.81770859]
[1754149775165,29.11471882,161.87,161.86,5.81770859]
[1754149775319,73.09471882,161.87,161.86,5.81770859]
[1754149775664,62.38031482,161.87,161.86,5.81770859]
[1754149776222,67.44821201,161.87,161.86,5.81770859]
[1754149776548,3.74076508,161.87,161.86,16.53211249]
[1754149776759,47.00076508,161.87,161.86,5.81770859]
[1754149777258,43.98,161.87,161.86,5.81770859]
[1754149777468,43.98,161.87,161.86,16.53211249]
[1754149777826,43.98,161.87,161.86,5.81770859]
[1754149778544,69.98,161.87,161.86,5.81770859]
[1754149781148,54.6944039,161.87,161.86,5.10770859]
[1754149781351,61.95552545,161.87,161.86,5.10770859]
[1754149782330,62.63552545,161.87,161.86,5.10770859]
[1754149783236,70.36459925,161.87,161.86,5.10770859]
[1754149783446,76.54239624,161.87,161.86,5.10770859]
[1754149783754,76.54239624,161.87,161.7,10.7144039]
[1754149783755,26.0,161.84,161.67,0.61854394]
[1754149783972,10.7144039,161.76,161.75,0.71]
[1754149784184,54.7544039,161.76,161.75,0.71]
[1754149785864,26.0,161.73,161.71,10.7144039]
[1754149786063,44.02,161.72,161.71,10.7144039]
[1754149786390,43.02,161.72,161.64,16.78468397]
[1754149786593,43.02,161.72,161.71,0.71]
[1754149786982,43.02,161.72,161.71,11.4244039]
[1754149787201,43.02,161.72,161.71,0.71]
[1754149787486,43.02,161.72,161.71,11.4244039]
[1754149787697,43.02,161.72,161.71,0.71]
[1754149787990,43.02,161.72,161.71,11.4244039]
[1754149788218,43.02,161.72,161.71,0.71]
[1754149788559,53.7344039,161.72,161.65,16.78468397]
[1754149788795,26.0,161.69,161.68,10.7144039]
[1754149788967,70.02,161.69,161.61,16.78468397]
[1754149789165,10.7144039,161.8,161.61,16.78468397]
[1754149789166,26.0,161.77,161.68,10.7144039]
[1754149789390,26.0,161.73,161.69,0.71]
[1754149789590,26.0,161.7,161.69,0.71]
[1754149789789,70.04,161.7,161.69,11.4244039]
[1754149789976,70.04,161.7,161.69,0.71]
[1754149790180,70.04,161.7,161.59,10.0]
[1754149790181,70.04,161.7,161.59,0.61885017]
[1754149790370,70.04,161.7,161.67,0.71]
[1754149790570,70.04,161.7,161.61,16.78468397]
[1754149790769,70.04,161.7,161.66,10.7144039]
[1754149791010,70.04,161.7,161.61,16.78468397]
[1754149791011,26.0,161.74,161.69,10.7144039]
[1754149791212,26.0,161.71,161.7,11.4244039]
[1754149791398,70.08,161.71,161.7,0.71]
[1754149791599,26.0,161.71,161.7,11.4244039]
[1754149791815,0.68,161.8,161.71,16.78468397]
[1754149791982,48.60783352,161.79,161.74,10.7144039]
[1754149792182,26.0,161.73,161.72,0.71]
[1754149792399,26.0,161.73,161.53,62.4892578]
[1754149792400,48.62783352,161.73,161.7,11.4244039]
[1754149792574,48.62783352,161.73,161.61,10.61877359]
[1754149792575,26.0,161.69,161.65,0.71]
[1754149792780,44.14,161.68,161.65,11.4244039]
[1754149792981,26.0,161.66,161.65,0.71]
[1754149793281,70.22,161.66,161.62,0.71]
[1754149793777,26.0,161.66,161.65,10.7144039]
[1754149793976,44.24,161.66,161.65,0.71]
[1754149794188,26.0,161.69,161.65,11.4244039]
[1754149794390,26.0,161.69,161.66,11.4244039]
[1754149794391,44.26,161.68,161.66,11.4244039]
[1754149794682,26.0,161.65,161.62,0.71]
[1754149794908,44.26,161.64,161.62,0.71]
[1754149795079,44.26,161.64,161.63,7.15512269]
[1754149795680,26.0,161.68,161.63,7.15512269]
[1754149796001,26.0,161.68,161.59,16.78468397]
[1754149796002,26.0,161.65,161.64,0.71]
[1754149796213,70.28,161.65,161.64,7.15512269]
[1754149797285,70.28,161.65,161.64,0.71]
[1754149797601,70.28,161.65,161.62,0.71]
[1754149797814,70.28,161.65,161.64,6.44512269]
[1754149798192,70.28,161.65,161.63,0.71]
[1754149798388,70.28,161.65,161.64,6.44512269]
[1754149798688,70.28,161.65,161.63,0.71]
[1754149798689,70.28,161.65,161.6,0.71]
[1754149798894,70.96,161.65,161.62,6.44512269]
[1754149799094,70.96,161.65,161.61,6.44512269]
[1754149799294,0.68,161.64,161.58,0.71]
[1754149799517,26.0,161.61,161.58,0.71]
[1754149799717,44.3,161.6,161.58,0.71]
[1754149799916,26.81468397,161.72,161.59,16.78468397]
[1754149799917,26.0,161.68,161.59,16.78468397]
[1754149800121,26.0,161.64,161.59,16.78468397]
[1754149800325,26.0,161.64,161.6,0.71]
[1754149800326,44.32,161.63,161.6,0.71]
[1754149800629,44.32,161.63,161.61,0.71]
[1754149800799,44.32,161.63,161.57,16.78468397]
[1754149800800,44.32,161.63,161.6,0.71]
[1754149800999,44.32,161.63,161.62,6.44512269]
[1754149801336,32.44512269,161.68,161.62,0.71]
[1754149801520,26.0,161.64,161.63,6.44512269]
[1754149801703,70.32,161.64,161.62,0.71]
[1754149801905,26.0,161.64,161.63,6.44512269]
[1754149802208,26.0,161.64,161.63,7.15512269]
[1754149802209,44.34,161.64,161.63,7.15512269]
[1754149802430,44.34,161.64,161.63,6.44512269]
[1754149802642,44.34,161.66,161.63,7.15512269]
[1754149802931,44.34,161.66,161.65,6.44512269]
[1754149803108,44.34,161.66,161.65,0.71]
[1754149803422,44.34,161.66,161.63,0.71]
[1754149803628,44.34,161.66,161.65,6.44512269]
[1754149804196,44.34,161.66,161.63,0.71]
[1754149804401,44.34,161.66,161.65,6.44512269]
[1754149805139,44.34,161.66,161.6,6.44512269]
[1754149805333,45.04,161.66,161.6,7.15512269]
[1754149805540,45.04,161.66,161.48,100.6770531]
[1754149805541,26.0,161.63,161.55,16.78468397]
[1754149805722,29.22354246,161.68,161.57,16.78468397]
[1754149805916,0.03,161.72,161.61,16.78468397]
[1754149806231,45.14,161.71,161.68,6.44512269]
[1754149806451,45.14,161.71,161.7,6.44512269]
[1754149806658,0.03,161.72,161.7,6.44512269]
[1754149806839,71.14,161.71,161.66,16.78468397]
[1754149807038,45.14,161.71,161.7,6.44512269]
[1754149807227,71.14,161.71,161.7,6.44512269]
[1754149807418,45.14,161.71,161.7,6.44512269]
[1754149808043,0.03,161.72,161.71,16.78468397]
[1754149808248,3.22538309,161.76,161.71,31.00332029]
[1754149808518,45.16,161.81,161.76,16.78468397]
[1754149809033,4.0457584,161.8,161.77,0.71]
[1754149809235,4.0457584,161.82,161.8,16.78468397]
[1754149809459,45.94,161.88,161.82,16.78468397]
[1754149809765,26.0,161.83,161.77,0.71]
[1754149809966,36.71944933,161.84,161.77,0.71]
[1754149809967,71.24,161.82,161.77,0.71]
[1754149810260,71.24,161.82,161.8,10.71944933]
[1754149810425,71.94,161.82,161.8,10.71944933]
[1754149810754,71.94,161.82,161.77,0.71]
[1754149810951,71.94,161.82,161.8,10.71944933]
[1754149811259,0.7,161.81,161.74,0.71]
[1754149811560,0.7,161.81,161.7,0.71]
[1754149811561,26.0,161.75,161.7,0.71]
[1754149811744,45.98,161.74,161.72,10.71944933]
[1754149812334,45.98,161.74,161.68,0.71]
[1754149812335,26.0,161.71,161.68,0.71]
[1754149812538,45.28,161.71,161.69,10.71944933]
[1754149812752,26.0,161.72,161.7,10.71944933]
[1754149812928,71.28,161.72,161.71,10.71944933]
[1754149813424,0.7,161.76,161.71,10.71944933]
[1754149813626,75.82146293,161.75,161.74,10.71944933]
[1754149813825,71.32,161.75,161.74,10.71944933]
[1754149814357,87.24272891,161.75,161.68,0.71]
[1754149814661,4.50327958,161.74,161.72,10.71944933]
[1754149814824,26.7,161.74,161.72,10.71944933]
[1754149815028,26.0,161.73,161.71,10.71944933]
[1754149815361,26.7,161.79,161.72,11.42944933]
[1754149815661,26.0,161.75,161.69,0.71]
[1754149815954,76.52550496,161.74,161.69,16.78468397]
[1754149816129,71.32,161.74,161.73,10.71944933]
[1754149816735,75.82555147,161.74,161.73,10.71944933]
[1754149816928,45.32,161.74,161.73,11.42944933]
[1754149817453,45.32,161.74,161.71,16.78468397]
[1754149817638,45.32,161.74,161.73,10.71944933]
[1754149817839,45.32,161.74,161.68,16.78468397]
[1754149818034,10.71944933,161.72,161.68,16.78468397]
[1754149818256,46.1,161.71,161.68,10.71944933]
[1754149818464,45.4,161.71,161.7,10.71944933]
[1754149818761,45.4,161.71,161.66,0.71]
[1754149818937,45.4,161.71,161.7,10.71944933]
[1754149819137,45.4,161.71,161.68,16.78468397]
[1754149819554,45.4,161.71,161.51,11.36229343]
[1754149819555,0.7,161.7,161.58,10.0]
[1754149819745,0.7,161.7,161.66,10.71944933]
[1754149819950,0.7,161.7,161.67,10.71944933]
[1754149820260,0.7,161.7,161.66,10.71944933]
[1754149820573,46.36,161.69,161.65,16.78468397]
[1754149820757,47.06,161.69,161.66,10.71944933]
[1754149821060,47.06,161.69,161.6,21.33826121]
[1754149821061,0.7,161.68,161.65,10.71944933]
[1754149821263,0.7,161.67,161.61,16.78468397]
[1754149821478,18.631767,161.75,161.63,16.78468397]
[1754149821479,46.34,161.66,161.63,16.78468397]
[1754149821649,46.34,161.66,161.58,16.78468397]
[1754149821845,46.34,161.66,161.6,16.78468397]
[1754149822060,46.34,161.66,161.64,10.71944933]
[1754149822557,46.34,161.66,161.61,0.71]
[1754149822745,46.34,161.66,161.64,10.71944933]
[1754149823147,46.34,161.66,161.62,0.71]
[1754149823359,46.34,161.66,161.64,10.71944933]
[1754149823847,46.34,161.66,161.65,10.71944933]
[1754149824479,0.7,161.68,161.65,10.71944933]
[1754149824653,46.56,161.66,161.65,10.71944933]
[1754149825547,46.58,161.67,161.65,11.42944933]
[1754149825773,46.58,161.69,161.66,11.42944933]
[1754149825978,0.7,161.68,161.62,0.71]
[1754149826144,0.7,161.68,161.64,10.71944933]
[1754149826348,46.58,161.69,161.66,10.71944933]
[1754149826549,26.0,161.72,161.68,10.71944933]
[1754149826773,51.13823283,161.71,161.69,0.71]
[1754149826962,46.62,161.71,161.7,10.71944933]
[1754149827178,0.03,161.75,161.71,16.78468397]
[1754149827384,4.52209351,161.74,161.71,16.78468397]
[1754149827570,46.67,161.75,161.74,16.78468397]
[1754149827756,51.19221526,161.75,161.74,28.2141333]
[1754149828885,4.55221526,161.75,161.74,28.2141333]
[1754149829687,0.03,161.75,161.74,28.2141333]
[1754149829857,4.55695599,161.75,161.74,28.2141333]
[1754149830053,0.03,161.75,161.74,28.2141333]
[1754149830394,4.55686927,161.75,161.74,28.2141333]
[1754149830576,0.03,161.75,161.74,28.2141333]
[1754149830787,46.68,161.8,161.74,28.2141333]
[1754149830965,4.52881487,161.79,161.76,16.78468397]
[1754149831156,46.68,161.81,161.78,27.5041333]
[1754149831356,4.52812106,161.8,161.75,0.61823802]
[1754149831687,47.35,161.81,161.75,0.61823802]
[1754149831688,4.52812106,161.79,161.76,0.67]
[1754149831857,0.03,161.84,161.78,16.78468397]
[1754149832180,4.52819419,161.83,161.82,16.78468397]
[1754149832385,0.03,161.84,161.82,28.1741333]
[1754149832685,47.28,161.91,161.84,16.78468397]
[1754149832889,3.22475683,161.9,161.88,10.71944933]
[1754149833057,3.22475683,161.9,161.88,27.5041333]
[1754149833257,3.22475683,161.9,161.88,28.1741333]
[1754149833457,3.22475683,161.9,161.88,38.89358263]
[1754149833881,3.22475683,161.9,161.88,28.1741333]
[1754149834383,0.2,161.92,161.88,27.5041333]
[1754149834583,0.2,161.92,161.88,28.1741333]
[1754149834784,0.2,161.92,161.89,16.78468397]
[1754149834972,0.2,161.92,161.91,27.5041333]
[1754149835685,0.2,161.92,160.92,81.35883485]
[1754149835686,0.2,161.92,161.87,0.67]
[1754149835856,0.2,161.92,161.88,16.78468397]
[1754149836066,0.67,161.91,161.88,16.78468397]
[1754149836266,0.2,161.92,161.9,10.71944933]
[1754149836566,0.2,161.92,161.85,16.78468397]
[1754149836777,0.67,161.91,161.85,16.78468397]
[1754149836967,0.67,161.91,161.82,0.67]
[1754149836968,0.67,161.91,161.83,16.78468397]
[1754149837485,47.58,161.92,161.85,16.78468397]
[1754149837786,47.58,161.92,161.91,10.71944933]
[1754149837965,48.25,161.92,161.91,10.71944933]
[1754149838891,48.25,161.92,161.85,17.45468397]
[1754149839061,0.67,161.91,161.88,10.71944933]
[1754149839260,0.67,161.9,161.88,10.71944933]
[1754149839765,47.58,161.92,161.89,10.71944933]
[1754149839968,47.58,161.92,161.83,16.78468397]
[1754149840283,0.67,161.91,161.89,10.71944933]
[1754149840480,0.67,161.9,161.89,10.71944933]
[1754149841187,48.15,161.92,161.89,10.71944933]
[1754149841375,0.67,161.91,161.89,10.71944933]
[1754149841571,0.67,161.9,161.89,10.71944933]
[1754149841777,0.67,161.9,161.85,16.78468397]
[1754149841974,11.38944933,161.9,161.85,10.71944933]
[1754149842179,11.38944933,161.89,161.85,10.71944933]
[1754149842386,0.67,161.88,161.85,10.71944933]
[1754149842565,10.71944933,161.91,161.87,10.71944933]
[1754149842890,47.48,161.92,161.81,17.40269274]
[1754149843096,47.22,161.91,161.88,10.71944933]
[1754149843262,47.22,161.91,161.86,10.71944933]
[1754149843263,0.67,161.9,161.86,10.71944933]
[1754149843900,0.67,161.89,161.87,10.71944933]
[1754149844403,0.67,161.88,161.87,10.71944933]
[1754149844607,0.67,161.88,161.86,10.71944933]
[1754149844900,57.93944933,161.91,161.87,10.71944933]
[1754149845119,0.67,161.9,161.87,10.71944933]
[1754149845295,0.67,161.9,161.88,10.71944933]
[1754149845672,47.22,161.91,161.89,10.71944933]
[1754149845982,0.2,161.92,161.9,10.71944933]
[1754149846180,0.2,161.92,161.91,10.71944933]
[1754149846786,0.2,161.92,161.91,27.5041333]
[1754149847093,0.2,161.92,161.91,10.71944933]
[1754149847883,0.2,161.92,161.88,16.78468397]
[1754149848084,0.2,161.92,161.89,10.71944933]
[1754149848085,0.67,161.91,161.89,10.71944933]
[1754149848290,0.67,161.91,161.85,16.78468397]
[1754149848291,47.77,161.9,161.85,16.78468397]
[1754149848469,0.67,161.89,161.86,10.71944933]
[1754149848675,0.67,161.91,161.88,10.71944933]
[1754149848882,47.08,161.91,161.9,10.71944933]
[1754149849789,47.75,161.91,161.84,17.45468397]
[1754149849972,47.75,161.91,161.88,10.71944933]
[1754149850283,47.08,161.91,161.9,10.71944933]
[1754149850497,47.75,161.91,161.87,10.71944933]
[1754149850673,47.75,161.91,161.86,10.71944933]
[1754149850674,57.79944933,161.91,161.86,10.71944933]
[1754149850875,10.71944933,161.89,161.81,0.67]
[1754149851078,0.67,161.88,161.85,10.71944933]
[1754149851416,47.06,161.87,161.86,10.71944933]
[1754149851572,47.73,161.87,161.85,10.71944933]
[1754149851769,47.06,161.87,161.82,0.67]
[1754149851971,47.06,161.87,161.86,27.5041333]
[1754149852168,47.06,161.91,161.87,16.78468397]
[1754149852478,47.73,161.91,161.89,10.71944933]
[1754149852675,0.2,161.92,161.9,10.71944933]
[1754149852882,0.2,161.92,161.91,27.5041333]
[1754149853209,0.03,161.94,161.91,27.5041333]
[1754149853210,0.03,161.94,161.92,16.78468397]
[1754149853372,0.03,161.94,161.93,10.71944933]
[1754149853573,0.03,161.94,161.93,11.38944933]
[1754149853769,0.03,161.94,161.93,28.1741333]
[1754149854074,0.03,161.98,161.94,16.78468397]
[1754149854268,0.03,161.98,161.95,11.33692385]
[1754149854588,0.03,161.98,161.95,12.00692385]
[1754149854774,0.03,161.98,161.95,27.5041333]
[1754149855318,0.03,161.98,161.95,28.1741333]
[1754149855931,0.03,161.98,161.91,26.61762707]
[1754149856089,0.03,161.98,161.95,10.71944933]
[1754149856418,0.7,161.96,161.95,10.71944933]
[1754149857389,0.03,161.96,161.95,10.71944933]
[1754149861211,0.69,161.96,161.9,16.78468397]
[1754149861410,0.69,161.96,161.94,10.71944933]
[1754149861595,0.69,161.96,161.9,16.78468397]
[1754149861792,0.69,161.96,161.94,10.71944933]
[1754149862191,0.69,161.96,161.9,16.78468397]
[1754149862405,0.69,161.96,161.93,10.71944933]
[1754149862712,0.69,161.96,161.89,10.71944933]
[1754149862713,10.71944933,161.94,161.89,10.71944933]
[1754149862919,0.66,161.93,161.89,10.71944933]
[1754149863104,0.66,161.92,161.89,10.71944933]
[1754149863417,0.66,161.94,161.9,10.71944933]
[1754149863740,0.66,161.93,161.9,10.71944933]
[1754149864551,0.66,161.95,161.91,10.71944933]
[1754149864830,0.66,161.92,161.9,10.71944933]
[1754149865711,0.66,161.91,161.89,10.71944933]
[1754149866114,0.66,161.93,161.9,10.71944933]
[1754149866331,0.66,161.92,161.9,10.71944933]
[1754149866525,0.66,161.92,161.88,0.06]
[1754149866526,11.37944933,161.92,161.88,0.06]
[1754149866737,46.89,161.96,161.88,0.06]